bitfinex-derivatives/quotes_ETHF0:USTF0_20250624
["timestamp","ask_amount","ask_price","bid_price","bid_amount"]
[1750776358211,7.072,2432.3,2431.9,2.05488]
[1750776358508,0.82183,2432.3,2432.1,0.82187]
[1750776358806,7.89381,2432.3,2432.1,0.82185]
[1750776359608,0.82185,2432.2,2432.0,2.25879]
[1750776359913,3.2078,2432.1,2432.0,0.82191]
[1750776360507,4.02969,2432.1,2431.8,1.3751]
[1750776360706,3.2078,2432.1,2432.0,0.82192]
[1750776360917,0.82194,2432.0,2431.8,1.3751]
[1750776361212,0.822,2431.8,2431.6,0.82203]
[1750776361408,7.072,2431.9,2431.4,5.9259]
[1750776361409,7.89397,2431.9,2431.5,2.05523]
[1750776361713,7.89398,2431.9,2431.7,0.82201]
[1750776362014,7.89398,2431.9,2431.8,0.82199]
[1750776362015,7.072,2431.9,2431.8,0.82199]
[1750776362716,3.2078,2432.1,2432.0,0.82192]
[1750776363011,10.2798,2432.1,2432.0,0.82192]
[1750776363217,3.2078,2432.1,2432.0,0.82192]
[1750776363617,3.2078,2432.9,2432.8,0.82165]
[1750776363813,7.8936,2433.0,2432.8,0.82164]
[1750776364414,7.072,2433.0,2432.8,0.82164]
[1750776364619,7.89359,2433.0,2432.8,0.82164]
[1750776365118,7.072,2433.0,2432.9,0.82162]
[1750776365416,0.82162,2432.9,2432.7,4.02946]
[1750776365617,0.82165,2432.8,2432.7,3.2078]
[1750776365817,0.82165,2432.8,2432.6,0.8217]
[1750776366220,0.82165,2432.8,2432.4,3.2078]
[1750776366221,5.78480234,2432.8,2432.4,3.2078]
[1750776366419,5.78480234,2432.5,2432.1,3.8644]
[1750776366716,7.072,2432.5,2432.4,0.82179]
[1750776367417,7.89378,2432.5,2432.3,0.8218]
[1750776367717,0.82184,2432.3,2432.1,4.02968]
[1750776367915,2.1793,2432.4,2432.2,0.82183]
[1750776368315,0.82198,2431.9,2431.6,0.82205]
[1750776368518,0.82198,2431.9,2431.5,3.2078]
[1750776368519,7.072,2431.9,2431.5,3.2078]
[1750776368816,0.82206,2431.6,2431.5,3.2078]
[1750776369007,0.82205,2431.7,2431.5,3.2078]
[1750776369213,0.82206,2431.6,2431.5,3.2078]
[1750776369419,0.82205,2431.7,2431.5,4.02989]
[1750776369627,0.82205,2431.7,2431.5,3.2078]
[1750776369831,0.82206,2431.6,2431.5,3.2078]
[1750776370213,0.82206,2431.6,2431.4,0.82211]
[1750776370214,0.82208,2431.6,2431.4,0.82211]
[1750776370415,0.8221,2431.5,2431.3,0.82213]
[1750776370615,0.82214,2431.4,2431.2,4.02999]
[1750776370818,0.82211,2431.5,2431.3,0.82216]
[1750776371012,2.05486,2432.0,2431.3,0.82216]
[1750776371013,7.073,2431.9,2431.3,3.50075]
[1750776371319,7.073,2431.9,2431.8,0.82199]
[1750776371617,10.2808,2432.0,2431.9,0.82196]
[1750776372025,0.6999,2432.1,2432.0,0.82192]
[1750776372223,7.7729,2432.1,2432.0,0.82192]
[1750776372423,7.073,2432.1,2432.0,0.82192]
[1750776372618,0.82186,2432.2,2432.0,0.82192]
[1750776372821,3.2078,2432.3,2431.8,4.592]
[1750776373119,0.82186,2432.2,2432.0,0.8219]
[1750776373326,0.8219,2432.1,2431.9,0.82193]
[1750776373525,0.82192,2432.0,2431.8,5.41397]
[1750776373719,7.073,2432.2,2431.6,0.6509]
[1750776374029,7.7257,2432.2,2431.8,3.2078]
[1750776374423,7.7257,2432.2,2432.1,0.82189]
[1750776374624,0.82192,2432.1,2431.8,4.02977]
[1750776374823,7.7257,2432.2,2431.8,4.02978]
[1750776375023,0.82193,2432.0,2431.8,3.2078]
[1750776375833,0.82196,2431.9,2431.8,3.2078]
[1750776376025,4.02976,2431.9,2431.6,0.82204]
[1750776376225,3.2078,2432.2,2431.5,2.71362]
[1750776376425,7.073,2432.3,2431.9,3.2078]
[1750776376621,7.8948,2432.4,2432.1,0.82188]
[1750776377423,0.82184,2432.3,2432.0,0.82191]
[1750776377628,0.82191,2432.1,2431.8,1.50378]
[1750776378130,4.5385,2432.2,2431.6,4.6392]
[1750776378323,0.6628,2432.0,2431.6,4.6392]
[1750776378524,0.82197,2431.9,2431.5,1.48047]
[1750776378827,7.89489,2432.1,2431.8,0.82198]
[1750776379325,7.073,2432.4,2431.9,3.2078]
[1750776379531,7.073,2432.4,2432.2,0.82184]
[1750776379917,7.89479,2432.4,2431.9,5.3059]
[1750776380123,7.073,2432.4,2431.9,5.3059]
[1750776380323,7.8948,2432.4,2432.1,0.82187]
[1750776380832,0.82183,2432.3,2432.1,0.82187]
[1750776381029,7.89482,2432.4,2432.1,0.82187]
[1750776381330,0.82191,2432.1,2431.9,5.3059]
[1750776381636,7.073,2432.4,2431.9,0.82196]
[1750776381821,0.82189,2432.2,2431.9,0.82196]
[1750776382018,2.21634,2432.3,2432.0,0.82192]
[1750776382321,0.82184,2432.3,2432.1,0.82189]
[1750776382521,0.82184,2432.3,2431.9,3.2078]
[1750776382522,7.89485,2432.3,2431.9,4.02974]
[1750776382719,7.89485,2432.3,2432.0,0.82192]
[1750776383125,0.82185,2432.3,2432.0,0.82192]
[1750776383427,4.02957,2432.5,2432.2,0.82186]
[1750776383632,0.8218,2432.4,2432.1,2.0313]
[1750776383929,0.8218,2432.4,2432.1,2.85317]
[1750776384126,3.2078,2432.5,2432.1,2.0313]
[1750776384339,3.2078,2432.5,2432.4,0.82179]
[1750776384524,3.2078,2432.5,2432.3,0.8218]
[1750776384833,3.2078,2432.5,2432.4,0.82179]
[1750776385334,8.55023,2432.6,2432.4,0.82179]
[1750776385533,8.55023,2432.6,2432.3,0.82181]
[1750776385833,7.7285,2432.6,2432.2,0.82184]
[1750776386032,0.82184,2432.3,2432.1,0.82188]
[1750776386336,0.82187,2432.2,2432.0,0.82193]
[1750776386536,0.8219,2432.1,2431.9,0.82194]
[1750776386837,0.8219,2432.1,2431.8,0.82197]
[1750776387136,9.94847,2432.2,2432.0,0.82192]
[1750776387638,7.051,2432.2,2432.1,0.82189]
[1750776389335,7.051,2432.2,2432.0,0.8219]
[1750776389733,7.051,2432.2,2431.9,4.02974]
[1750776389936,0.8219,2432.1,2431.9,0.82194]
[1750776390130,7.87288,2432.2,2432.0,0.82193]
[1750776390331,3.8792,2432.4,2431.9,3.2078]
[1750776390538,7.051,2432.3,2432.2,0.82186]
[1750776391230,7.051,2432.3,2432.0,3.39581]
[1750776391231,7.87283,2432.3,2432.1,0.82187]
[1750776391435,7.051,2432.3,2432.1,0.82187]
[1750776391830,7.051,2432.3,2432.2,0.82186]
[1750776392029,0.6714,2432.4,2432.3,0.82183]
[1750776392331,3.2078,2432.8,2432.4,2.05447]
[1750776392537,3.2078,2432.8,2432.7,0.82169]
[1750776392538,7.051,2432.8,2432.7,0.82169]
[1750776393739,3.2078,2433.1,2432.5,5.2107]
[1750776393936,4.02936,2433.1,2432.9,0.82161]
[1750776394635,0.82161,2433.0,2432.5,5.2107]
[1750776394934,4.02938,2433.1,2432.8,0.82165]
[1750776395137,0.8216,2433.0,2432.7,0.82167]
[1750776395442,3.2078,2432.8,2432.2,9.10458]
[1750776395642,0.82169,2432.7,2432.2,0.6725]
[1750776395941,0.6984,2432.7,2432.6,0.82172]
[1750776396738,0.6979,2432.9,2432.8,0.82166]
[1750776397035,1.51953,2432.9,2432.7,0.82168]
[1750776397243,0.6979,2432.9,2432.5,1.3766]
[1750776397433,0.6979,2432.9,2432.8,0.82166]
[1750776397834,3.9057,2432.9,2432.6,0.82171]
[1750776398041,6.6203967,2432.8,2432.5,0.82174]
[1750776398242,0.8217,2432.7,2432.5,0.82174]
[1750776398440,0.8217,2432.7,2432.4,4.02957]
[1750776398635,0.82173,2432.6,2432.3,0.8218]
[1750776398940,0.651,2432.5,2432.4,0.82179]
[1750776399538,7.05,2432.6,2432.5,0.82176]
[1750776399739,50.5658,2433.6,2432.9,2.05404]
[1750776399940,1.3741,2433.5,2433.3,4.02927]
[1750776400237,1.3741,2433.5,2433.4,0.82145]
[1750776400440,7.05,2433.7,2433.6,0.82139]
[1750776400641,1.3741,2433.8,2433.7,0.82135]
[1750776400940,1.3741,2433.8,2433.1,0.6699]
[1750776400941,0.82147,2433.4,2433.1,0.6699]
[1750776401139,9.8279567,2433.5,2433.2,0.82152]
[1750776401334,0.82146,2433.4,2433.2,0.82152]
[1750776401643,9.0065267,2433.5,2433.1,0.82155]
[1750776401845,0.6567,2433.3,2433.2,0.82152]
[1750776402343,0.6567,2433.3,2433.1,0.82153]
[1750776402542,0.6567,2433.3,2433.2,0.82152]
[1750776402747,0.6567,2433.3,2432.9,1.3125]
[1750776402941,0.6567,2433.3,2433.1,0.82154]
[1750776403142,0.6567,2433.3,2433.2,0.82152]
[1750776403646,0.6567,2433.3,2433.1,0.82153]
[1750776403832,0.6567,2433.3,2433.2,0.82152]
[1750776404446,1.47819,2433.3,2433.1,0.82153]
[1750776404745,0.6567,2433.3,2433.2,0.82152]
[1750776405333,0.6567,2433.3,2433.0,1.49157]
[1750776405645,7.048,2433.4,2433.0,0.67]
[1750776406039,2.74514,2433.9,2433.3,2.05373]
[1750776406040,7.048,2433.7,2433.3,2.05373]
[1750776406243,7.048,2433.7,2433.6,0.82139]
[1750776406640,7.86937,2433.7,2433.4,3.2078]
[1750776406942,0.82147,2433.4,2433.1,5.39503]
[1750776407152,3.2078,2433.5,2433.3,0.82148]
[1750776407345,2.12691,2433.6,2433.1,4.5735]
[1750776407535,7.048,2433.7,2433.1,6.62734]
[1750776407741,10.9732,2433.8,2433.7,0.82136]
[1750776408136,10.2558,2433.8,2433.7,0.82136]
[1750776408344,5.7987267,2434.2,2433.7,0.82136]
[1750776408345,10.9396,2434.1,2434.0,0.82125]
[1750776408743,7.7318,2434.1,2434.0,0.82125]
[1750776409444,10.2558,2434.6,2434.5,0.82109]
[1750776409643,10.2558,2434.6,2434.4,0.8211]
[1750776409848,10.2558,2434.6,2434.5,0.82109]
[1750776410250,11.07685,2434.6,2434.4,0.82111]
[1750776410450,10.2558,2434.6,2434.0,0.6935]
[1750776410747,4.02897,2434.3,2434.0,0.82123]
[1750776411048,0.82124,2434.1,2433.8,0.82131]
[1750776411352,0.82124,2434.1,2433.9,0.82129]
[1750776411549,14.2596267,2434.2,2433.6,2.0913]
[1750776412055,0.82127,2434.0,2433.8,0.82129]
[1750776412454,0.82125,2434.1,2433.9,0.82129]
[1750776412956,0.82127,2434.0,2433.8,0.82131]
[1750776413256,9.28211,2434.2,2433.6,4.14476]
[1750776413554,9.28211,2434.2,2434.0,0.82125]
[1750776413950,9.28209,2434.2,2434.0,0.82125]
[1750776414556,8.4609,2434.2,2433.6,4.14476]
[1750776414756,0.82127,2434.0,2433.8,0.82131]
[1750776414949,10.6283,2434.2,2434.0,0.82124]
[1750776415358,0.82122,2434.1,2433.9,0.82126]
[1750776415656,9.8071,2434.2,2433.6,2.0913]
[1750776415856,0.82132,2433.9,2433.7,0.82133]
[1750776416151,3.2078,2434.0,2433.6,2.0913]
[1750776416349,2.05326,2433.9,2433.2,3.2078]
[1750776416556,0.82139,2433.6,2433.4,0.82143]
[1750776416756,0.82138,2433.7,2433.2,3.2078]
[1750776416958,1.54368,2433.7,2433.5,0.8214]
[1750776417257,0.7223,2433.7,2433.6,0.82139]
[1750776417750,0.82139,2433.6,2433.5,0.8214]
[1750776417950,1.54366,2433.7,2433.5,0.8214]
[1750776418151,1.54366,2433.7,2433.6,0.82139]
[1750776418352,1.54366,2433.7,2433.5,0.8214]
[1750776418959,0.82139,2433.6,2433.3,1.4113]
[1750776419164,0.7223,2433.7,2433.3,1.4113]
[1750776419165,1.54368,2433.7,2433.4,0.82145]
[1750776419355,0.8214,2433.6,2433.4,0.82144]
[1750776419661,0.82142,2433.5,2433.4,0.82144]
[1750776420053,0.82142,2433.5,2433.3,0.82147]
[1750776420355,0.82146,2433.4,2433.2,4.02929]
[1750776420652,2.0535,2433.6,2433.1,0.7103]
[1750776420857,2.0239,2433.5,2432.9,3.897]
[1750776421156,7.033,2433.4,2433.3,0.82149]
[1750776423056,7.85448,2433.4,2433.3,0.82149]
[1750776423258,7.033,2433.4,2433.3,0.82149]
[1750776423659,7.033,2433.4,2433.2,0.8215]
[1750776423851,0.82157,2433.1,2432.7,2.05422]
[1750776424153,3.39866,2433.3,2432.6,5.2363]
[1750776424355,3.2078,2432.8,2432.6,0.6513]
[1750776424559,3.2078,2432.8,2432.4,0.6871]
[1750776424754,7.033,2433.0,2432.7,0.82168]
[1750776424755,1.48294,2432.9,2432.7,0.82168]
[1750776424956,0.6613,2432.9,2432.5,3.2078]
[1750776425160,1.48294,2432.9,2432.7,0.82168]
[1750776425358,3.8825,2433.2,2432.7,2.05425]
[1750776425562,0.82156,2433.1,2433.0,0.82159]
[1750776425862,0.82159,2433.0,2432.9,0.8216]
[1750776426056,0.82159,2433.0,2432.8,0.82164]
[1750776426359,5.26163,2433.2,2432.6,4.585]
[1750776426658,0.82164,2432.9,2432.7,0.82168]
[1750776426856,7.033,2433.0,2432.7,0.82168]
[1750776427058,0.82165,2432.9,2432.7,0.82168]
[1750776427257,7.85462,2433.0,2432.8,0.82166]
[1750776427458,0.82166,2432.8,2432.6,5.40671]
[1750776427658,8.4506,2433.0,2432.7,0.82169]
[1750776427862,0.82165,2432.9,2432.8,0.82166]
[1750776428162,8.4506,2433.0,2432.6,3.2078]
[1750776428562,0.8217,2432.7,2432.6,3.2078]
[1750776428755,0.82169,2432.8,2432.4,0.6871]
[1750776428958,0.82171,2432.7,2432.4,0.6871]
[1750776429261,5.26188,2432.9,2432.3,5.2236]
[1750776429464,0.82177,2432.5,2432.3,4.02961]
[1750776429667,8.4047,2432.6,2432.5,0.82176]
[1750776430961,9.22643,2432.6,2432.5,0.82176]
[1750776431256,8.4047,2432.6,2432.3,3.2078]
[1750776431463,0.82178,2432.5,2432.3,3.2078]
[1750776431755,0.8218,2432.4,2432.3,4.02962]
[1750776432466,0.82179,2432.5,2432.3,4.02962]
[1750776432661,0.82179,2432.5,2432.4,0.8218]
[1750776432963,8.4047,2432.6,2432.4,0.8218]
[1750776433163,0.8218,2432.4,2432.3,3.2078]
[1750776434069,8.4047,2432.6,2432.5,0.82176]
[1750776434257,3.2078,2432.9,2432.3,3.2078]
[1750776434462,54.374,2433.1,2432.6,5.26209]
[1750776434660,7.034,2433.1,2433.0,0.82159]
[1750776434870,7.034,2433.1,2433.0,4.02939]
[1750776435364,7.034,2433.4,2433.1,2.05388]
[1750776435565,7.034,2433.4,2433.3,0.82149]
[1750776436069,7.85546,2433.4,2433.2,0.8215]
[1750776436267,0.82153,2433.2,2433.1,2.26395]
[1750776436469,0.82156,2433.1,2433.0,0.82159]
[1750776436662,0.82156,2433.2,2433.1,0.82156]
[1750776437372,11.06327,2433.4,2432.8,3.49652]
[1750776437674,11.06327,2433.4,2433.2,0.82151]
[1750776438172,10.2418,2433.4,2433.3,0.82149]
[1750776438971,0.8215,2433.3,2433.2,0.82152]
[1750776439172,11.06328,2433.4,2433.3,0.82149]
[1750776440277,0.8215,2433.3,2433.2,0.82151]
[1750776440472,0.8215,2433.3,2433.1,2.22603]
[1750776440673,10.2418,2433.4,2433.3,0.82149]
[1750776441072,7.7373,2433.6,2433.5,0.82143]
[1750776441278,7.034,2433.6,2433.5,0.82143]
[1750776441465,7.034,2433.6,2433.4,0.82144]
[1750776441671,0.82144,2433.5,2433.4,0.82144]
[1750776442073,0.82146,2433.4,2433.2,1.4956]
[1750776442369,3.2078,2433.7,2433.3,2.05374]
[1750776442574,3.2078,2434.0,2433.3,7.31704]
[1750776442881,3.2078,2434.0,2433.8,0.82129]
[1750776442882,4.02906,2434.0,2433.8,0.82129]
[1750776443177,0.82132,2433.9,2433.4,2.05366]
[1750776443375,3.2078,2434.0,2433.9,0.82129]
[1750776444376,4.02906,2434.0,2433.9,0.82129]
[1750776445277,0.82129,2433.9,2433.8,0.82131]
[1750776445576,0.82129,2433.9,2433.7,1.54003]
[1750776445776,0.82137,2433.7,2433.3,5.98053]
[1750776446077,5.79514786,2433.7,2433.5,0.82141]
[1750776446273,0.82139,2433.6,2433.5,0.82141]
[1750776446473,0.82141,2433.6,2433.3,3.2078]
[1750776446686,0.82143,2433.5,2433.4,0.82143]
[1750776447174,0.82143,2433.5,2433.3,3.2078]
[1750776447373,0.82143,2433.5,2433.4,0.82144]
[1750776447579,0.82143,2433.5,2433.4,0.82146]
[1750776448177,0.82143,2433.5,2433.3,4.02927]
[1750776448369,7.84443,2433.5,2433.4,0.82146]
[1750776448570,7.023,2433.5,2433.4,0.82146]
[1750776448770,7.84443,2433.5,2433.4,0.82146]
[1750776449170,11.05219,2433.7,2433.5,0.82143]
[1750776449773,0.82139,2433.6,2433.5,0.82143]
[1750776449979,11.05216,2433.7,2433.6,0.82139]
[1750776450882,11.05216,2433.7,2433.5,0.8214]
[1750776451180,10.2308,2433.7,2433.4,0.82146]
[1750776451477,0.82142,2433.6,2433.5,0.82143]
[1750776451680,10.2308,2433.7,2433.3,5.26154]
[1750776451879,11.05216,2433.7,2433.6,0.8214]
[1750776452079,11.05216,2433.7,2433.5,0.8214]
[1750776452278,3.2078,2434.3,2433.6,3.2078]
[1750776452471,0.8212,2434.2,2433.7,2.76589]
[1750776452673,3.2078,2434.3,2433.9,0.82129]
[1750776452872,6.61640786,2434.1,2433.9,0.82129]
[1750776453078,0.82126,2434.0,2433.9,0.82129]
[1750776453385,4.02906,2434.0,2433.8,0.82133]
[1750776453783,0.6729,2433.9,2433.8,0.82133]
[1750776454281,0.82123,2434.2,2434.0,0.82126]
[1750776454486,0.7126,2434.2,2434.1,0.82123]
[1750776454782,1.5338,2434.2,2434.0,0.82124]
[1750776455283,7.023,2434.3,2433.9,2.05324]
[1750776455480,7.023,2434.3,2434.2,0.82119]
[1750776458085,7.18034786,2434.8,2434.0,6.64384]
[1750776458086,48.15897,2434.9,2434.8,0.82099]
[1750776458279,54.36,2434.9,2434.8,0.82099]
[1750776458483,55.18096,2434.9,2434.8,0.82099]
[1750776458685,0.82099,2434.8,2434.7,0.821]
[1750776459290,0.82102,2434.7,2434.6,0.82103]
[1750776459789,2.16491,2434.8,2434.7,0.82103]
[1750776460278,60.97613786,2434.9,2434.8,0.82099]
[1750776460478,0.821,2434.8,2434.7,0.821]
[1750776460689,63.36294786,2434.9,2434.4,4.6488]
[1750776460884,0.82103,2434.7,2434.6,0.82103]
[1750776461486,0.82118,2434.3,2434.2,0.82118]
[1750776461687,0.82119,2434.2,2434.1,4.029]
[1750776461898,0.82118,2434.3,2434.2,0.82119]
[1750776462190,0.82119,2434.2,2434.1,4.02902]
[1750776462585,0.82119,2434.2,2434.1,3.2078]
[1750776462894,0.82119,2434.2,2434.1,4.02903]
[1750776463082,0.82119,2434.2,2434.1,4.02901]
[1750776463395,0.82119,2434.2,2434.1,4.02903]
[1750776463689,0.82119,2434.2,2434.1,3.2078]
[1750776463890,0.82126,2434.0,2433.9,0.82128]
[1750776464091,9.8451,2434.4,2433.8,3.2078]
[1750776464385,0.82122,2434.2,2434.1,0.82122]
[1750776464582,0.82122,2434.2,2433.8,5.26111]
[1750776464583,0.82124,2434.1,2434.0,0.82123]
[1750776465292,0.82123,2434.2,2434.1,0.82121]
[1750776465597,0.82124,2434.1,2434.0,0.82124]
[1750776466492,0.82122,2434.2,2434.1,0.82121]
[1750776466884,2.05271,2434.6,2434.1,0.82121]
[1750776466885,5.26039,2434.7,2434.1,3.2078]
[1750776467091,0.82112,2434.5,2434.3,0.82114]
[1750776467288,0.82118,2434.3,2434.1,0.82121]
[1750776467489,0.82119,2434.2,2434.1,0.82123]
[1750776467692,7.84219,2434.2,2434.1,0.82123]
[1750776467982,9.07401,2434.2,2433.6,0.7079]
[1750776468183,0.82138,2433.7,2433.6,0.82138]
[1750776468484,12.81614786,2433.8,2433.5,0.6915]
[1750776468685,0.8214,2433.6,2433.5,0.82141]
[1750776468881,7.021,2433.8,2433.4,6.63395]
[1750776469083,5.9937,2434.1,2433.4,4.5803]
[1750776469285,0.82109,2434.5,2433.8,9.00294786]
[1750776469484,0.82109,2434.5,2434.4,0.82113]
[1750776469485,0.82112,2434.5,2434.4,0.82113]
[1750776469890,9.00294786,2434.5,2433.9,2.7073]
[1750776470085,0.82122,2434.2,2434.1,0.82123]
[1750776470290,0.82123,2434.1,2434.0,0.82124]
[1750776470492,7.021,2434.2,2434.0,0.82126]
[1750776470793,0.82118,2434.3,2434.2,0.82117]
[1750776470995,7.84212,2434.5,2434.4,0.82113]
[1750776471196,0.82113,2434.4,2434.3,0.82113]
[1750776471395,0.82117,2434.3,2434.2,0.82117]
[1750776471594,0.82121,2434.2,2434.1,0.82121]
[1750776471792,0.82119,2434.3,2434.2,0.82118]
[1750776472392,0.7198,2434.6,2434.5,0.82109]
[1750776472597,11.77151,2434.8,2434.7,0.82103]
[1750776472991,10.9505,2434.8,2434.7,0.82103]
[1750776473496,0.82104,2434.7,2434.6,0.82103]
[1750776473995,10.9505,2434.8,2434.7,0.82103]
[1750776474395,4.02879,2434.8,2434.7,0.82103]
[1750776474895,0.82103,2434.7,2434.6,0.82103]
[1750776475386,0.82106,2434.6,2434.5,0.82107]
[1750776475595,0.82109,2434.5,2434.4,1.4803]
[1750776475788,0.82108,2434.6,2434.5,0.82109]
[1750776476094,0.82109,2434.5,2434.4,1.4803]
[1750776476293,0.82109,2434.6,2434.5,0.82109]
[1750776476493,2.21485,2434.7,2434.6,0.82106]
[1750776476696,2.21483,2434.7,2434.6,0.82106]
[1750776476898,0.82106,2434.6,2434.5,0.82107]
[1750776477393,0.82109,2434.5,2434.4,0.6592]
[1750776477593,7.83308,2434.6,2434.5,0.82109]
[1750776477801,1.3938,2434.7,2434.6,0.82106]
[1750776478089,8.4058,2434.7,2434.5,0.82107]
[1750776478289,9.22685,2434.7,2434.6,0.82106]
[1750776478496,3.2078,2434.8,2434.4,2.05281]
[1750776478695,7.012,2434.9,2434.8,0.82097]
[1750776479190,3.2078,2434.9,2434.4,3.2078]
[1750776479394,0.82114,2434.4,2434.3,0.82115]
[1750776479692,7.83308,2434.6,2434.2,2.0999]
[1750776479891,7.83308,2434.6,2434.5,0.82109]
[1750776480094,7.012,2434.6,2434.3,1.4234]
[1750776480291,7.012,2434.6,2434.2,0.6765]
[1750776480489,0.7172,2434.5,2434.2,0.6765]
[1750776480694,0.82109,2434.5,2434.4,0.8211]
[1750776481291,0.8211,2434.5,2434.4,0.82111]
[1750776481997,7.83308,2434.6,2434.5,0.82109]
[1750776482208,2.24265,2434.7,2434.6,0.82106]
[1750776482394,7.7292,2434.7,2434.3,4.6312]
[1750776482594,0.82108,2434.6,2434.5,0.82108]
[1750776482795,7.7292,2434.7,2434.3,1.4234]
[1750776483095,0.82106,2434.7,2434.3,4.6312]
[1750776483290,0.82113,2434.4,2434.3,5.45234]
[1750776483498,0.82109,2434.6,2434.5,0.82109]
[1750776483692,0.82106,2434.6,2434.5,0.82109]
[1750776484703,0.82111,2434.5,2434.4,0.82111]
[1750776484895,0.82113,2434.4,2434.3,4.02894]
[1750776485700,0.82113,2434.5,2434.4,0.82111]
[1750776486106,0.6695,2434.9,2434.4,5.0]
[1750776486296,0.6695,2434.9,2434.7,0.82103]
[1750776486488,0.821,2434.8,2434.4,4.5339]
[1750776486692,0.6695,2434.9,2434.4,4.5339]
[1750776486894,1.49048,2434.9,2434.7,0.82101]
[1750776487097,0.82107,2434.6,2434.5,0.82109]
[1750776487300,0.82104,2434.7,2434.5,0.82109]
[1750776487702,0.82103,2434.8,2434.6,0.82106]
[1750776487902,0.82103,2434.7,2434.6,0.82106]
[1750776488504,0.82102,2434.8,2434.7,0.82102]
[1750776489502,0.82103,2434.7,2434.6,0.82103]
[1750776490303,0.82102,2434.8,2434.7,0.82102]
[1750776491202,0.82105,2434.7,2434.6,0.82104]
[1750776491503,0.82102,2434.8,2434.7,0.82102]
[1750776491705,0.82106,2434.7,2434.6,0.82104]
[1750776492002,0.82106,2434.7,2434.4,4.5339]
[1750776492003,0.821,2434.8,2434.7,0.821]
[1750776492398,8.50149,2434.9,2434.8,0.82099]
[1750776493106,0.82094,2435.0,2434.9,0.82096]
[1750776493405,11.03971,2435.1,2435.0,0.82092]
[1750776493802,0.82089,2435.1,2435.0,0.82092]
[1750776494499,3.2078,2435.1,2434.7,5.9124]
[1750776494703,0.82087,2435.2,2435.1,0.82086]
[1750776495207,0.82091,2435.1,2435.0,0.8209]
[1750776495411,0.82094,2435.0,2434.9,0.82093]
[1750776496713,0.82096,2434.9,2434.8,2.15878]
[1750776496913,0.82096,2435.0,2434.9,0.82094]
[1750776497412,0.82092,2435.1,2435.0,0.82091]
[1750776497709,0.82096,2434.9,2434.8,2.15877]
[1750776497911,0.82094,2435.0,2434.9,0.82093]
[1750776498313,0.82091,2435.1,2435.0,0.8209]
[1750776498503,0.82088,2435.2,2435.1,0.82086]
[1750776498901,0.6721,2435.3,2435.2,0.82086]
[1750776499213,8.4887,2435.4,2435.3,0.82083]
[1750776499612,8.48871,2435.4,2435.3,0.82083]
[1750776499811,0.6569,2435.4,2435.3,0.82083]
[1750776500012,1.47769,2435.4,2435.3,0.82083]
[1750776500416,0.6569,2435.4,2435.3,0.82083]
[1750776500607,0.82085,2435.3,2435.2,0.82083]
[1750776501214,1.4777,2435.4,2435.3,0.82083]
[1750776502510,0.6569,2435.4,2435.1,2.1403]
[1750776502712,0.82089,2435.1,2435.0,0.8209]
[1750776502918,0.6569,2435.4,2435.0,2.05225]
[1750776503109,1.4777,2435.4,2435.3,0.82083]
[1750776503416,7.011,2435.5,2435.4,0.82076]
[1750776503417,0.82078,2435.5,2435.4,0.82076]
[1750776503719,8.55303,2435.6,2435.5,0.82076]
[1750776504216,7.7323,2435.6,2435.5,0.82076]
[1750776505708,7.7323,2435.6,2435.2,3.8842]
[1750776505919,0.82077,2435.5,2435.4,0.82076]
[1750776506105,7.7323,2435.6,2435.5,0.82076]
[1750776506304,3.2078,2435.9,2435.6,0.82072]
[1750776506515,2.37663492,2436.2,2435.6,0.82072]
[1750776506516,0.82054,2436.2,2436.1,0.82055]
[1750776506710,4.6083,2436.5,2436.4,0.82045]
[1750776507013,4.6083,2436.5,2436.0,2.4308954]
[1750776507217,1.3092,2436.4,2435.9,3.2078]
[1750776507419,0.82055,2436.2,2436.1,0.82055]
[1750776507718,7.82055,2436.2,2436.0,0.82056]
[1750776507902,1.52346,2436.1,2436.0,0.82056]
[1750776508101,0.7029,2436.1,2436.0,0.82056]
[1750776508908,0.82051,2436.3,2435.9,1.3809]
[1750776509105,0.82051,2436.3,2436.1,0.82053]
[1750776509312,3.9248,2436.5,2436.0,2.05142]
[1750776509619,0.82045,2436.4,2436.3,0.82047]
[1750776509819,3.2078,2436.5,2436.4,0.82045]
[1750776510024,7.0,2436.6,2436.5,0.82042]
[1750776511006,2.21603,2436.8,2436.4,3.2078]
[1750776511207,2.21603,2436.8,2436.5,1.3809]
[1750776511208,1.3957,2436.8,2436.5,1.3809]
[1750776511517,0.82037,2436.7,2436.6,0.82036]
[1750776512311,0.82039,2436.6,2436.5,2.20131]
[1750776512817,0.82038,2436.7,2436.6,0.82037]
[1750776513716,2.21604,2436.8,2436.7,0.82035]
[1750776514019,0.82038,2436.7,2436.6,0.82037]
[1750776514519,0.82039,2436.6,2436.5,2.2013]
[1750776515208,0.82038,2436.7,2436.6,0.82036]
[1750776517217,1.3957,2436.8,2436.7,0.82035]
[1750776517628,2.21602,2436.8,2436.7,0.82035]
[1750776518322,1.3957,2436.8,2436.7,0.82035]
[1750776518511,2.21602,2436.8,2436.7,0.82035]
[1750776518713,1.3957,2436.8,2436.7,0.82035]
[1750776519017,2.21602,2436.8,2436.7,0.82035]
[1750776519821,1.3957,2436.8,2436.7,0.82035]